Cogmind - Beta 12 *** ADVENTURER MODE // 2023.12.18 @ 19:56:28 Player: zxpr0jk Result: Destroyed by L-41 Fighter with Axe Performance ------------- Evolutions (4) 2000 Regions Visited (6) 1200 Robots Destroyed (225) 1125 Value Destroyed (6820) 6820 Prototype IDs (12) 240 Alien Tech Used (0) 0 Bonus (69) 69 TOTAL SCORE: 11454 Bonus ------- High Alert Combat Kills 169 Follower Combat Kills 35 Friendly Fire -135 Cogmind --------- Core Integrity 0/850 Matter 60/300 Energy 129/200 System Corruption 4% Temperature Cool (0) Movement Core (800) Ox15 Location -6/Factory Parts ------- > --- POWER (2) -------- Cold Fusion Reactor > --- PROPULSION (3) --- (None) > --- UTILITY (7) ------ Large Storage Unit Advanced Sensor Array Targeting Computer Advanced Targeting Computer Advanced ECM Suite Hacking Suite > --- WEAPON (3) ------- Heavy Flak Cannon Power Maul > --- INVENTORY (15) --- Improved Sensor Array Improved Signal Interpreter Improved Medium Armor Plating Medium Reactive Plating EM Disruption Field Corruption Screen System Restoration Module Improved Recalibrator Improved EM Pulse Cannon Heavy Flak Cannon Remote Datajack Peak State ------------ > --- POWER ------------ Enhanced Nuclear Core Cold Fusion Reactor > --- PROPULSION ------- Improved Treads Medium Treads Medium Treads > --- UTILITY ---------- Large Storage Unit Advanced Sensor Array Targeting Computer Advanced Targeting Computer Advanced ECM Suite Medium Reactive Plating Hacking Suite > --- WEAPON ----------- Heavy Flak Cannon Improved Datajack Power Maul > --- INVENTORY -------- Improved Deuterium Engine Improved Sensor Array Improved Signal Interpreter Improved Medium Armor Plating Medium Reactive Plating EM Disruption Field Corruption Screen System Restoration Module Improved Recalibrator Improved EM Pulse Cannon Heavy Flak Cannon Remote Datajack [Rating: 59] Favorites ----------- Power Light Nuclear Core Engine Ion Engine Power Core Light Nuclear Core Reactor Cold Fusion Reactor Propulsion Improved Treads Treads Improved Treads Leg VSS Leg Wheel Compact Wheel Utility Large Storage Unit Device Hardlight Generator Storage Large Storage Unit Processor Advanced Targeting Computer Hackware Hacking Suite Protection Hardened Medium Armor Plating Weapon Flak Gun Energy Gun Improved EM Shotgun Ballistic Gun Flak Gun Ballistic Cannon Heavy Flak Cannon Special Weapon Remote Datajack Impact Weapon Power Maul Special Melee Weapon Improved Datajack Build | -11 -10 -9 -9 -8 -7 -6 ------- Run | Jun Mat Mat Sto Mat Fac Fac Slots Evolved 8 | . . 2 . 2 2 2 Power 1 | . . . . . 1 . Propulsion 1 | . . 1 . . . . Utility 5 | . . 1 . 1 1 2 Weapon 1 | . . . . 1 . . Parts Attached 135 | 6 9 27 15 28 27 23 Power 21 | 1 1 2 1 4 8 4 Engine 6 | 1 1 2 1 . . 1 Core 14 | . . . . 4 8 2 Reactor 1 | . . . . . . 1 Propulsion 32 | 2 2 13 5 4 6 . Treads 23 | . 2 6 5 4 6 . Leg 7 | . . 7 . . . . Wheel 2 | 2 . . . . . . Hover . | . . . . . . . Flight . | . . . . . . . Utility 40 | 1 3 6 5 12 6 7 Device 9 | . . . 1 3 2 3 Storage 5 | 1 1 . . 3 . . Processor 2 | . . . . 2 . . Hackware 1 | . . . . . . 1 Protection 23 | . 2 6 4 4 4 3 Artifact . | . . . . . . . Weapon 42 | 2 3 6 4 8 7 12 Energy Gun 8 | . 1 1 2 4 . . Energy Cannon . | . . . . . . . Ballistic Gun 26 | 2 2 4 2 4 6 6 Ballistic Cannon 2 | . . . . . . 2 Launcher . | . . . . . . . Special Weapon 2 | . . . . . 1 1 Impact Weapon 2 | . . 1 . . . 1 Slashing Weapon . | . . . . . . . Piercing Weapon . | . . . . . . . Special Melee Weapon 2 | . . . . . . 2 Unidentified Prototypes 6 | . . 1 1 2 1 1 Parts Lost 13 | . . 1 1 1 3 7 Power 2 | . . . 1 . . 1 Propulsion 3 | . . . . . . 3 Utility 5 | . . 1 . 1 1 2 Weapon 3 | . . . . . 2 1 Highest Loss Streak 3 | . . 1 1 1 2 3 To Critical Strikes . | . . . . . . . Average Slot Usage (%) 98 | . 98 98 99 99 99 93 Engine 5 | . 14 11 10 2 . 1 Core 6 | . . . . 6 15 7 Treads 23 | . 23 19 33 27 23 17 Leg 1 | . . 11 . . . . Device 5 | . . . 5 5 6 7 Storage 8 | . 14 11 11 9 7 6 Processor 8 | . . . . 10 15 13 Protection 12 | . 13 21 16 10 7 10 Energy Gun 4 | . . 2 9 10 3 . Ballistic Gun 15 | . 26 18 12 16 19 5 Naked Turns . | . . . . . . . Heaviest Build 83 | 13 32 48 48 52 59 83 Greatest Support 79 | 32 40 69 69 69 79 79 Greatest Overweight (x) 25 | . . 1 . . . 25 Average Overweight (x) . | . . . . . . . Largest Inventory Capacity 25 | 8 15 15 15 25 15 15 Average Capacity 14 | 6 9 15 15 15 15 15 Most Carried 15 | 6 10 15 15 15 15 15 Average Carried 12 | 3 8 11 13 14 13 11 Final Capacity 15 | 8 15 15 15 15 15 15 Final Carried 15 | 6 10 12 15 15 13 11 Class Distribution -------------------- 34% | Mutant 17% | Tank 17% | Gunner 12% | Hacker-Mutant 9% | Scavenger-Gunner 3% | Commander-Mutant Dominant Class ---------------- Mutant | -10/Materials Mutant | -9/Materials Mutant | -9/Storage Tank | -8/Materials Gunner | -7/Factory Hacker-Mutant | -6/Factory Resources | -11 -10 -9 -9 -8 -7 -6 ----------- Run | Jun Mat Mat Sto Mat Fac Fac Matter Collected 4341 | 209 343 665 529 1024 1065 506 Remotely . | . . . . . . . Salvage Created 7733 | . 423 1204 1247 2191 2033 635 Parts 443 | . 29 89 68 132 98 27 Haulers Intercepted 7 | . 1 2 1 1 2 . Recyclers Shooed 5 | . . . 2 1 1 1 Parts Field Recycled . | . . . . . . . Retrieved Matter . | . . . . . . . Parts Self-Destructed . | . . . . . . . Prevented . | . . . . . . . Kills | -11 -10 -9 -9 -8 -7 -6 ------- Run | Jun Mat Mat Sto Mat Fac Fac Combat Hostiles Destroyed 160 | . 8 28 26 42 37 19 Melee 5 | . . 4 . . . 1 Guns 138 | . 8 23 25 41 31 10 Cannons 5 | . . . . . . 5 AOE 9 | . . . 1 1 6 1 Classes Destroyed 16 | . 3 7 2 1 1 2 Worker 14 | . . 3 . 5 3 3 Builder 9 | . . 2 1 3 3 . Tunneler 1 | . . . . . . 1 Hauler 7 | . 1 2 1 1 2 . Recycler 11 | . . 1 1 3 5 1 Mechanic 2 | . . . 1 . 1 . Operator 3 | . . . 1 1 1 . Watcher 17 | . 2 3 2 5 3 2 Swarmer 38 | . . 9 5 11 6 7 Grunt 79 | . 8 14 17 17 20 3 Brawler 2 | . . 1 . 1 . . Duelist 3 | . . 1 1 . 1 . Sentry 27 | . . 3 4 12 6 2 Hunter 6 | . . . . 1 1 4 Programmer 5 | . . . . . 3 2 Behemoth 1 | . . . . . . 1 Best Kill Streak 11 | . 4 5 8 11 7 8 Combat Bots Only 7 | . 4 5 7 7 5 6 Max Kills in Single Turn 3 | . 1 2 2 2 3 2 Gunslinging 1 | . . 1 . 1 1 1 Exploded 2 | . . . 1 1 2 1 Melee 1 | . . 1 . . . 1 Uniques/NPCs Destroyed . | . . . . . . . Combat | -11 -10 -9 -9 -8 -7 -6 -------- Run | Jun Mat Mat Sto Mat Fac Fac Damage Taken 6858 | . 283 929 818 995 1208 2625 Core 1204 | . 28 66 67 122 60 861 Absorbed by Shields 1157 | . . . 80 298 544 235 Regen/Repaired (Parts) 800 | . 46 176 407 59 112 . Core Remaining (%) 84 | 100 88 . 66 77 91 . Volleys Fired 357 | . 34 73 56 71 71 52 Largest 3 | . 2 2 2 3 3 3 Hottest 118 | . 40 88 68 118 118 109 Shots Fired 821 | . 68 142 112 212 201 86 Gun 781 | . 68 142 112 212 201 46 Cannon 40 | . . . . . . 40 Launcher . | . . . . . . . Special . | . . . . . . . Kinetic 644 | . 68 119 75 136 160 86 Thermal 51 | . . 23 . 28 . . Explosive . | . . . . . . . Electromagnetic 126 | . . . 37 48 41 . Robot Hit Streak 66 | . 32 21 15 66 50 26 Robot Miss Streak 5 | . 3 3 3 4 3 5 Penetration Max . | . . . . . . . Secondary Targets 29 | . 2 5 3 10 8 1 Max Gunslinging Chain 2 | . 1 1 1 2 1 1 Shots Hit Robots 702 | . 53 120 96 160 180 93 Core Hits 710 | . 24 60 68 173 257 128 Critical Kills . | . . . . . . . Critical Parts Destroyed 4 | . . 3 . . . 1 Critical Strikes 7 | . . 6 . . . 1 Burn 2 | . . 2 . . . . Destroy 1 | . . 1 . . . . Smash 4 | . . 3 . . . 1 Melee Attacks 25 | . . 12 . . . 13 Impact 25 | . . 12 . . . 13 Slashing . | . . . . . . . Piercing . | . . . . . . . Sneak Attacks 2 | . . . . . . 2 Combat Hostiles . | . . . . . . . Follow-up Attacks . | . . . . . . . Damage Inflicted 15873 | . 655 1887 2301 3650 4707 2673 Guns 12073 | . 655 1605 1755 3419 3893 746 Cannons 995 | . . . . . . 995 Explosions 1793 | . . . 531 207 814 241 Melee 970 | . . 279 . . . 691 Ramming 42 | . . 3 15 24 . . Kinetic 10231 | . 655 1377 1130 2036 3292 1741 Thermal 2269 | . . 228 531 696 814 . Explosive 241 | . . . . . . 241 Electromagnetic 2120 | . . . 625 894 601 . Impact 970 | . . 279 . . . 691 Slashing . | . . . . . . . Piercing . | . . . . . . . Highest Corruption 4 | . 2 . . 4 . 4 Average Corruption 3 | . 1 . . 4 . 3 Corruption Purged . | . . . . . . . Corruption Blocked 5 | . . . . . . 5 Effects 50 | . 1 . . 44 . 5 Message Errors 9 | . 1 . . 8 . . Matter Fused 10 | . . . . 9 . 1 Heat Flow Errors 9 | . . . . 7 . 2 Energy Discharges 6 | . . . . 4 . 2 Data Loss (minor) 7 | . . . . 7 . . Data Loss (major) 4 | . . . . 4 . . Misfires 3 | . . . . 3 . . Alerts 1 | . . . . 1 . . Weapon Failures 1 | . . . . 1 . . Overload Shots . | . . . . . . . Overflow Damage 498 | . . 55 10 7 75 351 Projectiles . | . . . . . . . Explosions 167 | . . . 10 7 75 75 Melee 331 | . . 55 . . . 276 Knockbacks 44 | . . 2 . . . 42 Impact 9 | . . 2 . . . 7 Kinetic 31 | . . . . . . 31 Secondary 4 | . . . . . . 4 Self-Inflicted Damage 661 | . . . 92 93 344 132 Shots 16 | . . . 3 4 7 2 Rammed 3 | . . . 1 2 . . Targets Rammed 4 | . . 1 1 2 . . Kicked 1 | . . 1 . . . . Crushed . | . . . . . . . Highest Temperature 646 | . 29 318 393 272 360 646 Average Temperature 100 | . 10 84 110 87 103 140 Received Heat Transfer 2296 | . 207 363 470 485 361 410 Effects 33 | . . . 2 2 7 22 Shutdowns 8 | . . . . . . 8 Energy Bleed 3 | . . . . . . 3 Interference 10 | . . . . 2 6 2 Matter Decay 5 | . . . 2 . . 3 Short Circuit 1 | . . . . . . 1 Damage (minor) 2 | . . . . . 1 1 Damage (core) 4 | . . . . . . 4 Siege Activations . | . . . . . . . Robots Corrupted . | . . . . . . . Combat Hostiles . | . . . . . . . Parts Fried 10 | . . . . 5 2 3 Impact Corruptions 17 | . . 3 . . . 14 Robots Melted . | . . . . . . . Combat Hostiles . | . . . . . . . Parts Melted 2 | . . 1 1 . . . Heat Transferred 3365 | . . 703 750 1212 700 . Parts Sabotaged . | . . . . . . . Parts Stolen . | . . . . . . . Parts Stripped . | . . . . . . . Power Chain Reactions 13 | . . . 3 4 6 . Missiles Intercepted . | . . . . . . . Alert | -11 -10 -9 -9 -8 -7 -6 ------- Run | Jun Mat Mat Sto Mat Fac Fac Peak Influence 537 | . 228 360 340 537 449 335 Initial 154 | . . 46 68 61 154 83 Average 232 | . 120 183 213 328 271 144 Maximum Alert Level 2 | . 1 1 1 2 2 1 Low Security (%) 44 | 100 82 55 50 23 27 68 Level 1 42 | . 17 44 49 36 58 31 Level 2 13 | . . . . 39 14 . Level 3 . | . . . . . . . Level 4 . | . . . . . . . Level 5 . | . . . . . . . High Security . | . . . . . . . Max Security . | . . . . . . . Squads Dispatched 31 | . . 2 7 7 8 7 Investigation 6 | . . 2 1 . 1 2 Extermination 6 | . . . . . 3 3 Reinforcement 9 | . . . 2 4 2 1 Assault 2 | . . . 2 . . . Garrison 8 | . . . 2 3 2 1 Intercept . | . . . . . . . Searches Triggered . | . . . . . . . Construction Impeded 1 | . . . . . 1 . Haulers Reinforced . | . . . . . . . Active Scanning Responses . | . . . . . . . Cargo Convoy Interrupts 1 | . . . . . . 1 Stealth | -11 -10 -9 -9 -8 -7 -6 --------- Run | Jun Mat Mat Sto Mat Fac Fac Distress Signals 13 | . 2 2 1 3 3 2 Communications Jammed . | . . . . . . . Distress Signals . | . . . . . . . Times Spotted 238 | . 18 35 36 57 53 39 Peak Tracking Total 8 | . 5 5 8 7 5 5 Tactical Retreats 12 | . 1 2 1 2 2 4 Traps | -11 -10 -9 -9 -8 -7 -6 ------- Run | Jun Mat Mat Sto Mat Fac Fac Traps Triggered 9 | . 3 1 . 3 2 . Indirectly . | . . . . . . . Trap Hack Attempts . | . . . . . . . Triggered . | . . . . . . . Disarmed . | . . . . . . . Reprogrammed . | . . . . . . . Reused . | . . . . . . . Traps Extracted . | . . . . . . . Installed . | . . . . . . . Triggered 2 | . . . . . . 2 Machines | -11 -10 -9 -9 -8 -7 -6 ---------- Run | Jun Mat Mat Sto Mat Fac Fac Machines Disabled 9 | . . . . 4 3 2 Max in Single Turn 2 | . . . . 2 2 2 Garrison Access 3 | . . . 1 . 1 1 Machines Repaired . | . . . . . . . Machines Sabotaged . | . . . . . . . Overloaded Fab Kills . | . . . . . . . Hacking | -11 -10 -9 -9 -8 -7 -6 --------- Run | Jun Mat Mat Sto Mat Fac Fac Machines Accessed 52 | . 3 13 10 9 10 7 Terminals 34 | . 2 8 8 6 6 4 Fabricators 2 | . . . . . . 2 Repair Stations 8 | . 1 2 1 1 3 . Recycling Units 2 | . . 1 . 1 . . Scanalyzers 3 | . . 2 . 1 . . Garrison Access 3 | . . . 1 . 1 1 Total Hacks 146 | . 8 42 36 25 19 16 Successful 103 | . 7 36 22 20 9 9 Failed 43 | . 1 6 14 5 10 7 Catastrophic 3 | . . 1 . 1 1 . Database Lockouts . | . . . . . . . Manual 49 | . 2 8 7 15 10 7 Terminals 81 | . 6 18 21 14 12 10 Fabricators 5 | . . . . . . 5 Repair Stations 26 | . 2 6 11 2 5 . Recycling Units 4 | . . 3 . 1 . . Scanalyzers 23 | . . 15 . 8 . . Garrison Access 7 | . . . 4 . 2 1 Terminal Hacks 32 | . 5 12 7 4 2 2 Record 13 | . 3 4 2 2 1 1 Part Schematic 1 | . . . 1 . . . Robot Schematic 1 | . . . 1 . . . Robot Analysis 3 | . . 2 . 1 . . Prototype ID Bank 3 | . . 2 . 1 . . Open Door 3 | . . . 3 . . . Branch Access Points 1 | . 1 . . . . . Locate Traps 4 | . 1 2 . . 1 . Dispatch Records 1 | . . . . . . 1 Recall Reinforcements 1 | . . 1 . . . . Registered Prototypes 1 | . . 1 . . . . Fabricator Hacks 4 | . . . . . . 4 Load Schematic 2 | . . . . . . 2 Build 2 | . . . . . . 2 Repair Station Hacks 22 | . 2 6 10 2 2 . Scan Component 11 | . 1 3 5 1 1 . Repair 11 | . 1 3 5 1 1 . Recycling Unit Hacks 3 | . . 2 . 1 . . Process 1 | . . 1 . . . . Report Inventory 2 | . . 1 . 1 . . Scanalyzer 19 | . . 12 . 7 . . Insert Component 9 | . . 6 . 3 . . Analyze 10 | . . 6 . 4 . . Garrison Access Hacks 3 | . . . 1 . 1 1 Seal Access 3 | . . . 1 . 1 1 Unauthorized Hacks 20 | . . 4 4 6 4 2 Terminals 19 | . . 3 4 6 4 2 Botnet 19 | . . 3 4 6 4 2 Fabricators . | . . . . . . . Repair Stations . | . . . . . . . Recycling Units . | . . . . . . . Scanalyzers 1 | . . 1 . . . . Extract 1 | . . 1 . . . . Garrison Access . | . . . . . . . Data Cores Recovered . | . . . . . . . Used . | . . . . . . . Hacking Detections 40 | . 2 10 7 8 8 5 Full Trace Events 4 | . . 1 . . 1 2 Feedback Events . | . . . . . . . Feedback Blocked . | . . . . . . . Robot Schematics Acquired 1 | . . . 1 . . . Robots Built 4 | . . . . . . 4 Authchips . | . . . . . . . Time 54 | . . . . . . 54 Total Robot Build Rating 4 | . . . . . . 4 Part Schematics Acquired 11 | . . 7 1 3 . . Parts Built . | . . . . . . . Authchips . | . . . . . . . Time . | . . . . . . . Total Part Build Rating . | . . . . . . . Parts Repaired 11 | . 1 3 5 1 1 . Time 352 | . 26 77 160 51 38 . Parts Recycled . | . . . . . . . Recycled Matter 95 | . . 95 . . . . Retrieved Matter . | . . . . . . . Retrieved Components . | . . . . . . . Parts Scanalyzed 9 | . . 6 . 3 . . Part Schematics Acquired 9 | . . 6 . 3 . . Parts Damaged . | . . . . . . . Bothacking | -11 -10 -9 -9 -8 -7 -6 ------------ Run | Jun Mat Mat Sto Mat Fac Fac Used RIF Installer . | . . . . . . . Robots Hacked . | . . . . . . . Non-combat . | . . . . . . . Combat . | . . . . . . . Robot Hacks Applied . | . . . . . . . Relay Couplers Released . | . . . . . . . Fabnet Peak Effective % . | . . . . . . . Robots Rewired . | . . . . . . . Allies Hacked . | . . . . . . . Hacks Repelled . | . . . . . . . Allies | -11 -10 -9 -9 -8 -7 -6 -------- Run | Jun Mat Mat Sto Mat Fac Fac Total Allies 19 | . . . 12 . 3 4 Largest Group 10 | . . . 10 4 3 3 Highest-Rated Group 93 | . . . 88 32 93 93 Highest-Rated Ally 31 | . . . 31 8 31 31 Total Orders 7 | . . . 5 . . 2 ROAM 3 | . . . 1 . . 2 FOLLOW 4 | . . . 4 . . . Ally Attacks 31 | . . . 19 6 . 6 Total Damage 374 | . . . 192 68 . 114 Kills 1 | . . . 1 . . . Allies Corrupted . | . . . . . . . Allies Melted . | . . . . . . . Intel | -11 -10 -9 -9 -8 -7 -6 ------- Run | Jun Mat Mat Sto Mat Fac Fac Robot Analysis Total 3 | . . 2 . 1 . . Derelict Logs Recovered . | . . . . . . . Drone Launches . | . . . . . . . Drone Recoveries . | . . . . . . . Exploration | -11 -10 -9 -9 -8 -7 -6 ------------- Run | Jun Mat Mat Sto Mat Fac Fac Turns Passed 10900 | 66 680 1734 1486 2641 2585 1708 Spaces Moved 5361 | 48 367 808 682 1381 1382 693 Core 3 | 1 . . . . . 2 Treads 4936 | . 266 534 682 1381 1382 691 Legs 274 | . . 274 . . . . Wheels 148 | 47 101 . . . . . Hover . | . . . . . . . Flight . | . . . . . . . Fastest Speed 50 | 50 100 90 160 160 160 160 Average Speed 166 | 98 143 161 160 162 162 209 Slowest Speed 1300 | 100 160 240 160 163 163 1300 Overloaded Moves . | . . . . . . . Propulsion Burnouts . | . . . . . . . Robots Hopped . | . . . . . . . Cave-ins Triggered . | . . . . . . . Exploration Rate (%) 53 | 4 61 67 90 95 36 18 Regions Visited 6 Branch Regions 1 Pre-discovered Areas . | . . . . . . . Known Exits Taken . | . . . . . . . Unknown Exits Taken 6 | 1 1 1 1 1 1 . Scrap Searched . | . . . . . . . Spaces Dug . | . . . . . . . Terrain Destroyed 133 | . . . 12 13 79 29 Melee . | . . . . . . . Projectile . | . . . . . . . AOE 133 | . . . 12 13 79 29 Terrain Rammed . | . . . . . . . Walls Destroyed . | . . . . . . . Machines Disabled . | . . . . . . . Actions | -11 -10 -9 -9 -8 -7 -6 --------- Run | Jun Mat Mat Sto Mat Fac Fac Total 6595 | 63 454 1069 959 1628 1573 849 Wait 559 | 4 28 115 199 104 62 47 Move 5355 | 47 366 807 681 1380 1381 693 Hop . | . . . . . . . Pick Up 64 | 6 9 13 3 17 11 5 Fast Attach 18 | 6 2 5 . . 2 3 Attach 23 | . . 3 1 4 3 12 Detach 12 | . . 3 . . . 9 Swap 94 | . 7 19 14 24 22 8 Drop 82 | . 8 18 2 26 21 7 Fire 357 | . 34 73 56 71 71 52 Melee 25 | . . 12 . . . 13 Ram . | . . . . . . . Kick 1 | . . 1 . . . . Crush 3 | . . . 1 2 . . Escape Stasis . | . . . . . . . Rewire 2 | . . . 2 . . . Trap . | . . . . . . . Miscellaneous . | . . . . . . . Route ------- -11/Junkyard -10/Materials (discovered 3 exits: *Mat / *Min x2) -9/Materials (discovered 5 exits: *Mat x2 / [*Min] / *Sto x2) -9/Storage -8/Materials (discovered 3 exits: *Fac x3) -7/Factory (discovered 3 exits: *Fac x2 / [*Low]) -6/Factory History --------- Turn | Location | Event 11 | -11/Junkyard | Discovered new exit (range 15) 67 | -11/Junkyard | Entered Materials 134 | -10/Materials | Discovered new exit (range 11) 272 | -10/Materials | Discovered new exit (range 15) 300 | -10/Materials | Build established: Mutant 443 | -10/Materials | Repaired Assault Rifle 669 | -10/Materials | Identified exit to Mines 723 | -10/Materials | Discovered new exit (range 16) 747 | -10/Materials | Entered another Materials area 747 | -9/Materials | Evolved 2 slots: Propulsion x1, Utility x1 1174 | -9/Materials | Repaired Lgt. Armor Plating 1212 | -9/Materials | Discovered new exit (range 5) 1357 | -9/Materials | Discovered new exit (range 15) 1964 | -9/Materials | Discovered new exit (range 10) 2258 | -9/Materials | Discovered new exit (range 15) 2352 | -9/Materials | Repaired Imp. Treads 2389 | -9/Materials | Repaired Imp. Treads 2449 | -9/Materials | Discovered new exit (range 5) 2481 | -9/Materials | Entered Storage 2536 | -9/Storage | Garrison activated, responded to threat 3076 | -9/Storage | Met a pair of Derelict thieves 3203 | -9/Storage | Destroyed 7 combat bots 3385 | -9/Storage | Repaired Imp. Treads 3418 | -9/Storage | Repaired Shotgun 3452 | -9/Storage | Repaired Imp. Treads 3485 | -9/Storage | Repaired Imp. Treads 3519 | -9/Storage | Repaired Med. Armor Plating 3561 | -9/Storage | Assisted by bots powering up and referring to "LRC-V3" 3677 | -9/Storage | Discovered new exit (range 16) 3860 | -9/Storage | Build established: Commander-Mutant 3967 | -9/Storage | Entered Materials 3967 | -8/Materials | Accompanied by 4 allies 3967 | -8/Materials | Evolved 2 slots: Utility x1, Weapon x1 4523 | -8/Materials | Build established: Tank 4740 | -8/Materials | Discovered new exit (range 16) 4806 | -8/Materials | Destroyed 7 combat bots 4994 | -8/Materials | Repaired Imp. EM Shotgun 5437 | -8/Materials | Garrison activated, responded to threat 5463 | -8/Materials | Discovered new exit (range 14) 6486 | -8/Materials | Build established: Gunner 6570 | -8/Materials | Discovered new exit (range 14) 6608 | -8/Materials | Entered Factory 6608 | -7/Factory | Evolved 2 slots: Power x1, Utility x1 6668 | -7/Factory | Repaired Hrd. Medium Armor Plating 7635 | -7/Factory | Discovered new exit (range 5) 7678 | -7/Factory | Discovered new exit (range 16) 7795 | -7/Factory | Build established: Scavenger-Gunner 8742 | -7/Factory | Build established: Gunner 9056 | -7/Factory | Discovered new exit (range 8) 9106 | -7/Factory | Allied Derelicts emerged from ambush trap array 9193 | -7/Factory | Entered another Factory area 9193 | -6/Factory | Accompanied by 3 allies 9193 | -6/Factory | Evolved 2 slots: Utility x2 9259 | -6/Factory | Spotted B-75 Beast 9279 | -6/Factory | Destroyed B-75 Beast 9482 | -6/Factory | Build established: Hacker-Tank 9668 | -6/Factory | Garrison activated, responded to threat 9773 | -6/Factory | Fabricated W-16 Scout? 9806 | -6/Factory | Build established: Hacker-Mutant 9826 | -6/Factory | Fabricated W-16 Scout? 9906 | -6/Factory | Core integrity fell below 50% 10150 | -6/Factory | Core integrity fell below 20% 10611 | -6/Factory | Cargo convoy interrupted 10901 | -6/Factory | Destroyed by L-41 Fighter with Axe Last Messages --------------- 10765_ Destroyed Seismic Detector. 10765_ Destroyed Imp. Terrain Scanner. 10765_ T-07 Excavator system corrupted by crushing effect. 10765_ T-07 Excavator knocked back. 10771_ R-10 Processor collects VTOL Module. 10775_ Acquired 15 matter. 10794_ System corrupted: Heat flow error (+224). 10797_ Acquired 13 matter. 10800_ Acquired 6 matter. 10818_ ALERT: Rogue bot located, Programmers report to Factory Zone 1Z. 10866_ Imp. Datajack destroyed. 10870_ K-01 Serf destroyed. 10876_ Med. Treads destroyed. 10880_ Imp. Deuterium Engine severed. 10886_ Med. Reactive Plating severed. 10890_ Destroyed Microactuators. 10890_ L-41 Fighter system corrupted by crushing effect. 10890_ L-41 Fighter knocked back. 10890_ Critical hit (Burn: +37). 10900_ Enh. Nuclear Core destroyed. Map ----- +----------------------------------------------------+ | ??????????????????????????????# # #??? | | ?????????????????############## + #??? | | ?????????????????# # # """" #??? | | ?????????????????# # # """" #??? | | ?????????????????# # # """" #??? | | ?????????????????# # # """" #??? | | ?????????????????# # # #??? | | ?????????????????# # # """""" #??? | | ?????????????????# + # """""" #??? | | ?????????????????# # + """"""????? | | ?????????????????# [[[ # # """"""????? | | ?????????????????# [[ # # ????? | | ?????????????????# [[ # ##########???? | | ?????????????????# # #?????? | | ?????????????????########+##### #?????? | | ?????????????????# + #?????? | | ?????????????????# # ##### #?????? | | ?????????????????# # #???# #?????? | | ?????????????????# """ # #???##### #?????? | | ?????????????????# """ # #???????# #?????? | | ?????????????????#[ """ # #???????# #?????? | | ?????????????????######## #########+## ####### | | ????????????????????????# ## * # # | | ????????????????????????# ## [# + """" | | ????????????????????????# ## # # """" | | ???????????????????####?#@## [ # # """" | | ????????############T ###l############ # """" | | ??? ? # """" | | ??? % g # """" | | ??? # """" | | ???? # | | ???? ####### | | ?????###########################+######+########## | | ????????????????????????????# # | | ????????????????????????????# """ # | | ????????????????????????????# """ # """ """ | | ????????????????????????????# """ # """ """ | | ????????????????????????????# # """ """ | | ????????????????????????????# """ # | | ????????????????????????????# """ # """ """ | | ????????????????????????????# """ # """ """ | | ????????????????????????????# # """ """ | | ????????????????????????????########## | | ?????????????????????????????????????# | | ?????????????????????????????????????# | | ?????????????????????????????????????############# | | ?????????????????????????????????????????????????? | | ?????????????????????????????????????????????????? | | ?????????????????????????????????????????????????? | | ?????????????????????????????????????????????????? | +----------------------------------------------------+ Best States ------------- Heat Dissipation 37 Energy Generation 30 Energy Capacity 510 Matter Stores 300 Matter Capacity 300 Sight Range 16 Robot Scan Range 16 Terrain Scan Density 10 ECM Strength 2 Armor Coverage 675 Resistance: KI 50 Resistance: TH 20 Resistance: EX 20 Resistance: EM 20 Resistance: I 20 Resistance: S 20 Resistance: P 20 Evasion (%) 57 Targeting Accuracy 13 Recoil Reduction 3 Offensive Hacking 20 Item Schematics ----------------- Particle Gun | -9/Materials | Scanalyzed EMP Blaster | -9/Materials | Extracted Assault Rifle | -9/Materials | Scanalyzed Hammer | -9/Materials | Scanalyzed Ion Engine | -9/Materials | Scanalyzed Lgt. Nuclear Core | -9/Materials | Scanalyzed Sensor Array | -9/Materials | Scanalyzed System Restoration Module | -9/Storage | Hacked Hacking Suite | -8/Materials | Scanalyzed Adv. ECM Suite | -8/Materials | Scanalyzed Imp. Treads | -8/Materials | Scanalyzed Robot Schematics ------------------ W-16 Scout | -9/Storage | Hacked Fabricated ------------ W-16 Scout | x2 | -6/Factory W-16 Scout | x2 | -6/Factory Alien Tech Used ----------------- None Achievements -------------- None Challenges ------------ None Game ------ Seed PulseHeartSabre Manual? 0 Play Time 01:50:43 Cumulative 44.0 hours Start 2023.07.28 @ 19:41:15 End 2023.12.18 @ 19:56:28 Sessions 9 Manual Loads 0 Difficulty Adventurer Special Mode None Game No. 32 Rogue 13 Adventurer 19 Explorer 0 Win Type - Total 0 Types 0/0/0/0/0/0/0/0/0 Lore% 31 Gallery% 35 Achievement% 32 Wizard Run 0 Options --------- ASCII 0 Keyboard 1 Movement Numpad Keybinds 0 Fullscreen 1 Font 18/SmallcapsGlow Map View 76x50 Tactical HUD 1 Map Filters NONE Filters NONE Steam 1 RUN: be62a662-f713-40e0-bba2-a3771fe1db68